Cogmind - Beta 17.1 @@@ ROGUE MODE // 2026.09.23 @ 23:04:05 Player: 4R-ZE3 Result: Self-destructed Performance ------------- Evolutions (8) 4000 Regions Visited (25) 5000 Robots Destroyed (410) 2050 Value Destroyed (19519) 19519 Prototype IDs (31) 620 Alien Tech Used (2) 400 Bonus (5143) 5143 TOTAL SCORE: 36732 Bonus ------- High Alert Combat Kills 665 Follower Combat Kills 1531 Network Hubs Disabled 200 Met Imprinter 300 Built Enhanced Grunts 300 A7 Reached Mainframe 300 Met R17 at Cetus 500 Met R17 at Research 2000 Friendly Fire -653 Cogmind --------- Core Integrity 1450/1450 Matter 290/300 Energy 125/125 System Corruption 0% Temperature Cool (0) Movement Core (1900) Ox37 Location -2/Research Parts ------- > --- POWER (3) -------- Light Ion Engine > --- PROPULSION (6) --- Flying Surge-Shield Exoskeleton > --- UTILITY (10) ----- Armored Scrap Engine Huge Storage Unit Advanced Signal Interpreter Advanced Targeting Computer Thermal Barrier (fused) > --- WEAPON (4) ------- Hvy. Ballistic Penetrator Construct/C > --- INVENTORY (25) --- Heavy Shield Leg Faulty Experimental Surge Thruster Faulty Experimental Surge Thruster Experimental Surge Thruster Improved Cryofiber Web Advanced Cryofiber Web Advanced Cryofiber Web Advanced Heat Sink Advanced Heat Sink Advanced Coolant Injector Experimental Coolant Injector Advanced Sensor Array Advanced Signal Interpreter Advanced ECM Suite EM Shield Advanced Component Analysis Suite Transdimensional Reconstructor Core Reset Matrix Subatomic Replicator Gamma Rifle Enhanced Gauss Cannon Peak State ------------ > --- POWER ------------ Particle-Quantum Reactor > --- PROPULSION ------- Flying Surge-Shield Exoskeleton > --- UTILITY ---------- Armored Scrap Engine Experimental Heat Sink Huge Storage Unit Advanced Signal Interpreter Advanced Targeting Computer Makeshift Transmission Jammer Experimental Phase Shifter > --- WEAPON ----------- Hvy. Ballistic Penetrator Construct/C > --- INVENTORY -------- Heavy Shield Leg Experimental Surge Thruster Experimental Surge Thruster Experimental Surge Thruster Improved Cryofiber Web Advanced Cryofiber Web Advanced Cryofiber Web Advanced Heat Sink Advanced Heat Sink Advanced Coolant Injector Experimental Coolant Injector Advanced Sensor Array Advanced Signal Interpreter Advanced ECM Suite Thermal Barrier EM Shield Advanced Component Analysis Suite Transdimensional Reconstructor High-powered Transdimensional Reconstructor Core Reset Matrix Subatomic Replicator Gamma Rifle Enhanced Gauss Cannon [Rating: 180] Favorites ----------- Power Constructs Engine Improved Deuterium Engine Reactor Constructs Propulsion Constructs Treads Advanced Treads Leg Aluminum Leg Wheel Compact Wheel Flight Unit Constructs Utility Huge Storage Unit Device Armored Scrap Engine Storage Huge Storage Unit Processor Advanced Signal Interpreter Protection Light Armor Plating Weapon Constructs Energy Gun Precision Beam Rifle Energy Cannon Beam Cannon Ballistic Gun Hypervelocity Coil Gun Ballistic Cannon Constructs Launcher Improved Proton Missile Launcher Special Weapon Improved Plasma Cutter Impact Weapon Hammer Slashing Weapon Katana Build | -11 -10 -10 -10 -8 -8 -8 -6 -6 -6 -6 -5 -5 -5 -5 -5 -4 -4 -4 -4 -4 -4 -3 -3 -3 -2 ------- Run | Yrd Mat Min Sub Mat Sto Rec Fac Low Low Zio Pro Fac Upp Upp War Pro Fac Ext Cet Arc Hub Res Qua Frg Res Slots Evolved 16 | . . . . 4 . . 4 . . . . 2 . . . . 2 . . . . 2 . . 2 Power 2 | . . . . . . . 1 . . . . . . . . . . . . . . 1 . . . Propulsion 4 | . . . . 2 . . 1 . . . . 1 . . . . . . . . . . . . . Utility 8 | . . . . 1 . . 2 . . . . 1 . . . . 1 . . . . 1 . . 2 Weapon 2 | . . . . 1 . . . . . . . . . . . . 1 . . . . . . . . Parts Attached 116 | 2 12 1 . 26 9 6 9 1 3 2 1 12 4 . 3 2 6 4 . 2 2 3 3 3 . Power 8 | . 2 . . 1 . 1 2 . . . . . . . . . . . . . . 1 . 1 . Engine 7 | . 2 . . 1 . 1 2 . . . . . . . . . . . . . . . . 1 . Core . | . . . . . . . . . . . . . . . . . . . . . . . . . . Reactor 1 | . . . . . . . . . . . . . . . . . . . . . . 1 . . . Propulsion 18 | 2 2 . . 8 2 2 2 . . . . . . . . . . . . . . . . . . Treads 17 | 2 2 . . 8 2 1 2 . . . . . . . . . . . . . . . . . . Leg . | . . . . . . . . . . . . . . . . . . . . . . . . . . Wheel 1 | . . . . . . 1 . . . . . . . . . . . . . . . . . . . Hover . | . . . . . . . . . . . . . . . . . . . . . . . . . . Flight . | . . . . . . . . . . . . . . . . . . . . . . . . . . Utility 54 | . 6 . . 4 3 1 4 . 2 1 . 9 4 . 2 1 4 4 . 1 1 2 3 2 . Device 40 | . 3 . . 2 2 1 3 . 1 1 . 9 3 . 2 1 3 3 . 1 1 1 3 . . Storage 5 | . 3 . . . 1 . . . . . . . . . . . . . . . . 1 . . . Processor 7 | . . . . 1 . . 1 . 1 . . . 1 . . . 1 1 . . . . . 1 . Hackware . | . . . . . . . . . . . . . . . . . . . . . . . . . . Protection 2 | . . . . 1 . . . . . . . . . . . . . . . . . . . 1 . Artifact . | . . . . . . . . . . . . . . . . . . . . . . . . . . Weapon 36 | . 2 1 . 13 4 2 1 1 1 1 1 3 . . 1 1 2 . . 1 1 . . . . Energy Gun 13 | . . . . 5 3 1 . 1 . 1 . 1 . . . . . . . . 1 . . . . Energy Cannon 15 | . 2 1 . 6 . . 1 . 1 . . 2 . . . . 2 . . . . . . . . Ballistic Gun 2 | . . . . . 1 . . . . . . . . . . . . . . 1 . . . . . Ballistic Cannon 1 | . . . . . . . . . . . 1 . . . . . . . . . . . . . . Launcher 2 | . . . . 1 . . . . . . . . . . . 1 . . . . . . . . . Special Weapon 1 | . . . . . . . . . . . . . . . 1 . . . . . . . . . . Impact Weapon 1 | . . . . 1 . . . . . . . . . . . . . . . . . . . . . Slashing Weapon 1 | . . . . . . 1 . . . . . . . . . . . . . . . . . . . Piercing Weapon . | . . . . . . . . . . . . . . . . . . . . . . . . . . Special Melee Weapon . | . . . . . . . . . . . . . . . . . . . . . . . . . . Unidentified Prototypes 22 | . 1 . . 3 4 1 1 . . . . 4 . . 2 . 2 . . . 1 . . 3 . Corrupted Parts 2 | . . . . . . . . . . 2 . . . . . . . . . . . . . . . System Corruption 14 | . . . . . . . . . . 14 . . . . . . . . . . . . . . . Parts Lost 18 | . . 1 . . 2 . 2 2 . . . 2 . . . . . . . . 1 . 1 7 . Power 4 | . . . . . . . 1 . . . . . . . . . . . . . . . . 3 . Propulsion 2 | . . . . . 1 . 1 . . . . . . . . . . . . . . . . . . Utility 10 | . . . . . 1 . . 1 . . . 2 . . . . . . . . 1 . 1 4 . Weapon 2 | . . 1 . . . . . 1 . . . . . . . . . . . . . . . . . Highest Loss Streak 3 | . . 1 . . 1 . 1 2 . . . 1 . . . . . . . . 1 . 1 3 . To Critical Strikes . | . . . . . . . . . . . . . . . . . . . . . . . . . . Average Backups 22 | 6 11 16 20 24 24 18 22 23 24 24 25 20 23 24 21 22 24 23 24 25 25 23 24 21 21 Power 1 | 1 1 2 2 2 2 2 . . 1 1 1 1 . . . . . . . 2 2 1 1 . . Propulsion 3 | 4 4 5 7 8 3 6 7 3 3 3 4 1 1 4 5 5 4 . . . . . . 1 4 Utility 8 | . 1 3 5 3 2 3 5 5 7 8 8 9 13 12 14 15 14 14 13 13 13 15 15 12 12 Weapon 7 | 1 4 5 6 11 16 5 9 13 11 11 11 7 8 6 1 . 3 7 9 9 9 7 5 3 2 Tool/Special . | . . . . . . . . . . . . . . . . . . . . . . . . . . Unused Backups 170 | . 6 . . 14 8 37 8 5 4 2 1 11 2 7 . 2 11 6 3 . 1 5 12 8 17 Power 11 | . 1 . . 2 . 1 1 . 1 . . . . . . . 2 . . . . 2 1 . . Propulsion 56 | . 3 . . 3 6 14 4 2 . . . 4 . 1 . . 5 4 1 . . . 2 3 4 Utility 25 | . 1 . . 2 1 2 . . 2 . . . . . . . 3 . 1 . . 1 2 2 8 Weapon 75 | . 1 . . 7 1 20 3 3 1 2 1 7 2 6 . 2 1 2 1 . 1 2 7 3 2 Tool/Special 3 | . . . . . . . . . . . . . . . . . . . . . . . . . 3 Average Slot Usage (%) 61 | . 99 100 100 99 99 61 52 57 47 46 47 51 51 50 46 49 50 47 48 52 51 46 46 46 34 Engine 4 | . 14 14 14 9 9 8 7 11 5 . . . . 3 . . . . . . . . . . 4 Core 1 | . . . . . . . . . . 6 1 2 5 1 5 2 . 3 3 . . . . . . Reactor 1 | . . . . . . . . . . . 4 2 . . . 2 5 . 1 5 5 4 4 3 . Treads 9 | . 28 28 28 35 35 10 6 7 3 . . 1 . 3 3 . 4 4 5 5 5 4 2 1 . Leg 1 | . . . . . . . . . 2 6 6 1 4 1 . . . . . . . . . 2 . Wheel 1 | . . . . . . 7 . . . . . . . . . . . . . . . . . . . Device 14 | . 12 14 14 11 17 11 12 13 13 13 13 16 16 17 16 16 20 15 15 15 14 18 18 18 8 Storage 6 | . 14 14 14 9 9 9 6 6 6 6 6 5 5 5 5 5 5 5 5 5 5 4 4 4 4 Processor 4 | . . . . . . . 5 6 6 6 6 5 5 5 5 5 5 9 10 10 10 9 9 9 8 Energy Gun 2 | . 1 . . 4 25 7 . . . . . . . . . . . . . . 1 . . . . Energy Cannon 7 | . 24 28 28 22 1 1 4 7 6 6 6 7 9 9 . 2 1 4 5 5 2 1 3 2 . Ballistic Cannon 1 | . . . . . . 3 5 2 . . 1 2 . . 5 2 3 . . . 2 2 . 1 4 Peak Build Rating 180 | 6 15 15 16 38 41 48 71 78 85 85 89 112 112 110 118 124 137 130 139 139 142 161 171 180 139 Average Rating 83 | 6 9 14 15 30 39 38 56 73 78 80 83 101 110 102 101 120 126 121 120 138 138 147 162 170 139 On Entrance 86 | 6 6 15 15 16 38 38 45 71 74 80 81 89 110 109 95 118 124 124 117 139 139 130 161 167 139 Avg Prop Armor Cover (%) 7 | . . . . . . . 9 6 . . . . . . . . . . . . . . . . . Naked Turns . | . . . . . . . . . . . . . . . . . . . . . . . . . . Heaviest Build 166 | 12 90 95 95 108 104 104 123 124 122 116 144 148 145 142 138 141 152 145 139 143 137 166 165 163 113 Greatest Support 363 | 40 46 46 46 90 86 105 126 110 80 77 77 140 134 191 191 159 214 202 202 202 202 363 363 310 264 Greatest Overweight (x) 5 | . 2 2 2 1 1 5 1 1 1 1 1 1 1 1 . . . 1 . . . . . . . Average Overweight (x) . | . . . 2 1 1 1 . . 1 1 1 1 1 . . . . . . . . . . . . Largest Inventory Capacity 25 | 8 25 25 25 25 25 25 25 25 25 25 25 25 25 25 25 25 25 25 25 25 25 25 25 25 25 Average Capacity 24 | 8 18 19 25 25 25 25 25 25 25 25 25 25 25 25 25 25 25 25 25 25 25 25 25 25 25 Most Carried 25 | 6 15 20 22 25 25 25 25 25 25 25 25 25 25 25 23 24 25 25 25 25 25 25 25 25 22 Average Carried 22 | 6 11 16 20 24 24 18 23 23 24 24 24 20 23 24 21 22 24 23 24 25 24 23 24 22 22 Final Capacity 25 | 8 15 25 25 25 25 25 25 25 25 25 25 25 25 25 25 25 25 25 25 25 25 25 25 25 25 Final Carried 25 | 6 15 20 22 25 25 25 21 23 25 25 25 25 23 20 23 24 25 25 25 25 25 25 25 22 22 Scrap Engine Consumption 335 | . . . . . . 77 12 21 17 . 8 39 3 28 7 7 21 29 12 . 3 20 9 22 . Constructs Created 4 | . . . . . . 3 . 1 . . . . . . . . . . . . . . . . . Constructs Modified 143 | . . . . . . 31 6 7 9 . 2 15 3 13 4 4 7 12 2 . 1 12 6 9 . Class Distribution -------------------- 65% | Construct 10% | Mutant 10% | Commander-Construct 9% | Gunner 3% | Tank Dominant Class ---------------- Mutant | -10/Materials Mutant | -10/Mines Mutant | -10/Subcaves Tank | -8/Materials Gunner | -8/Storage Construct | -8/Recycling Construct | -6/Factory Construct | -6/Lower Caves Construct | -6/Lower Caves Construct | -6/Zion Construct | -5/Proximity Caves Construct | -5/Factory Construct | -5/Upper Caves Construct | -5/Upper Caves Construct | -5/Warlord Construct | -4/Proximity Caves Construct | -4/Factory Commander-Construct | -4/Extension Commander-Construct | -4/Cetus Commander-Construct | -4/Archives Commander-Construct | -4/Hub_04(d) Construct | -3/Research Construct | -3/Quarantine Construct | -3/Protoforge Construct | -2/Research Resources | -11 -10 -10 -10 -8 -8 -8 -6 -6 -6 -6 -5 -5 -5 -5 -5 -4 -4 -4 -4 -4 -4 -3 -3 -3 -2 ----------- Run | Yrd Mat Min Sub Mat Sto Rec Fac Low Low Zio Pro Fac Upp Upp War Pro Fac Ext Cet Arc Hub Res Qua Frg Res Matter Collected 5120 | 181 242 20 . 350 175 176 120 234 266 20 210 873 176 54 . 246 166 196 50 123 34 302 500 406 . Remotely . | . . . . . . . . . . . . . . . . . . . . . . . . . . Salvage Created 23674 | . 586 369 91 1391 1528 2662 936 654 960 . 814 1329 209 775 . 871 995 1213 278 361 186 1892 2039 3535 . Parts 1046 | . 49 18 6 79 78 108 37 23 30 . 18 75 10 26 . 43 55 53 9 17 9 63 92 148 . Haulers Intercepted 15 | . 2 . . 4 5 1 . . . . . . . . . . 1 . . . . 1 1 . . Recyclers Shooed 7 | . . . . . . 6 . . . . . . . . . . . . . . . 1 . . . Parts Field Recycled . | . . . . . . . . . . . . . . . . . . . . . . . . . . Retrieved Matter . | . . . . . . . . . . . . . . . . . . . . . . . . . . Parts Self-Destructed 51 | . . . 11 . . . . 6 7 . 4 . 7 7 . 9 . . . . . . . . . Prevented 102 | . . . . . . . . 14 19 . 13 . 2 21 . 33 . . . . . . . . . Parts Restored . | . . . . . . . . . . . . . . . . . . . . . . . . . . Kills | -11 -10 -10 -10 -8 -8 -8 -6 -6 -6 -6 -5 -5 -5 -5 -5 -4 -4 -4 -4 -4 -4 -3 -3 -3 -2 ------- Run | Yrd Mat Min Sub Mat Sto Rec Fac Low Low Zio Pro Fac Upp Upp War Pro Fac Ext Cet Arc Hub Res Qua Frg Res Combat Hostiles Destroyed 297 | . 15 5 2 20 27 14 17 11 15 . 13 21 5 7 . 16 10 12 3 2 2 19 24 37 . Melee 6 | . . . . . . 6 . . . . . . . . . . . . . . . . . . . Guns 42 | . 6 . . 1 27 6 . 2 . . . . . . . . . . . . . . . . . Cannons 161 | . 8 5 2 15 . . 10 6 9 . 8 13 5 4 . 5 10 6 . 1 1 16 16 21 . AOE 14 | . . . . 3 . . 3 . . . . 3 . . . 5 . . . . . . . . . Classes Destroyed 23 | . 6 4 1 2 . 4 2 . 1 . . . 1 . . . . 1 . . . . . 1 . Worker 9 | . . 2 . 1 . . 2 . . . . 2 . . . . . . . . 1 1 . . . Builder 27 | . 1 . . 1 . 20 . . . . . 2 . . . . . 1 . . . 1 . 1 . Tunneler 4 | . . 2 . . . 1 . . . . . 1 . . . . . . . . . . . . . Hauler 15 | . 2 . . 4 5 1 . . . . . . . . . . 1 . . . . 1 1 . . Recycler 26 | . . 1 . 2 1 19 1 . . . . . . . . . . . . . . 2 . . . Mechanic 1 | . . . . . . . . . . . . . . . . . . . . . . . . 1 . Operator 13 | . 1 . . 3 1 . . . . . . 1 . . . . . 2 . 2 . 1 2 . . Watcher 16 | . 1 . . 2 1 . 1 . . . . 2 . . . . 2 2 1 . . 2 2 . . Swarmer 47 | . 6 2 . 6 7 . 4 2 . . 1 . 5 . . 9 . . . . . 5 . . . Grunt 84 | . 9 2 . 4 8 1 7 6 7 . 6 8 . 3 . 4 2 2 . . . 11 1 3 . Brawler 5 | . . . . . . 1 . . 1 . 1 . . . . 2 . . . . . . . . . Duelist 5 | . . . . . . 1 1 . 1 . 2 . . . . . . . . . . . . . . Protector 3 | . . . . . . 2 . . . . 1 . . . . . . . . . . . . . . Sentry 53 | . . 1 1 8 12 2 3 1 1 . 2 1 . . . 1 6 6 . 2 1 3 . 2 . Demolisher 1 | . . . . . . 1 . . . . . . . . . . . . . . . . . . . Specialist 3 | . . . . . . . . . 3 . . . . . . . . . . . . . . . . Hunter 23 | . . . . 2 . . . 2 1 . . 2 . 4 . . . . . . . . 8 4 . Programmer 36 | . . . . . . . 1 . 1 . . 10 . . . . 2 2 . . . . 15 5 . Heavy 1 | . . . . . . . 1 . . . . . . . . . . . . . . . . . . Behemoth 2 | . . . . . . . . . . . . . . . . . . 2 . . . . . . . Cetus Guard 3 | . . . . . . . . . . . . . . . . . . . 3 . . . . . . Lightning 1 | . . . . . . . . . . . . . . . . . . . . . 1 . . . . Hotshot 19 | . . . . . . . . . . . . . . . . . . . . . . . . 19 . Immortal 3 | . . . . . . . . . . . . . . . . . . . . . . . . 3 . Overlord 1 | . . . . . . . . . . . . . . . . . . . . . . . . 1 . Subdweller 7 | . . . 1 . . 6 . . . . . . . . . . . . . . . . . . . Zionite 1 | . . . . 1 . . . . . . . . . . . . . . . . . . . . . Samaritan 4 | . . . . . . . . . . . . . 1 3 . . . . . . . . . . . Butcher 1 | . . . . . . . . . . . . . . . . . . . . 1 . . . . . Best Kill Streak 15 | . 6 4 1 5 8 9 6 7 4 . 7 10 5 3 . 5 3 3 3 2 2 15 4 9 . Combat Bots Only 9 | . 6 2 1 5 8 6 4 7 4 . 7 4 5 3 . 5 2 2 2 2 1 8 4 9 . Max Kills in Single Turn 5 | . 2 1 1 2 1 1 5 1 1 . 1 2 1 1 . 2 1 1 1 1 1 2 1 1 . Gunslinging . | . . . . . . . . . . . . . . . . . . . . . . . . . . Exploded 3 | . . . . 2 . . 3 . . . . 2 . . . 2 . . . . . . . . . Melee 1 | . . . . . . 1 . . . . . . . . . . . . . . . . . . . Uniques/NPCs Destroyed . | . . . . . . . . . . . . . . . . . . . . . . . . . . Combat | -11 -10 -10 -10 -8 -8 -8 -6 -6 -6 -6 -5 -5 -5 -5 -5 -4 -4 -4 -4 -4 -4 -3 -3 -3 -2 -------- Run | Yrd Mat Min Sub Mat Sto Rec Fac Low Low Zio Pro Fac Upp Upp War Pro Fac Ext Cet Arc Hub Res Qua Frg Res Hostile Shots Fired 1561 | . 63 29 2 88 83 23 105 59 33 . 18 102 36 37 . 47 79 51 14 1 84 96 260 247 4 Missed 524 | . 18 6 1 27 19 5 36 18 11 . 4 28 10 10 . 16 16 14 5 . 18 36 118 108 . Hits 1037 | . 45 23 1 61 64 18 69 41 22 . 14 74 26 27 . 31 63 37 9 1 66 60 142 139 4 Melee 1 | . . . . . . . 1 . . . . . . . . . . . . . . . . . . Projectile 1036 | . 45 23 1 61 64 18 68 41 22 . 14 74 26 27 . 31 63 37 9 1 66 60 142 139 4 AOE 2 | . . . . . . . . . . . . 1 . . . . 1 . . . . . . . . Critical Strikes 58 | . . 1 . 1 3 . 2 3 1 . . 7 . 2 . 1 4 2 2 . 8 2 9 10 . Part Disruptions 2 | . . . . . . . . . . . . . . . . . . . . . 1 . 1 . . Damage Taken 19158 | . 411 267 21 792 860 387 1269 758 328 . 276 1773 416 418 . 506 1346 834 129 78 2340 1171 1554 3107 117 Core 1669 | . 59 64 21 70 106 24 141 67 50 . 20 128 17 34 . . 144 67 . 22 138 160 41 296 . Absorbed by Shields 2109 | . . . . . . . . . . . . . . . . . . 90 104 . 22 270 1541 82 . Ignored by Resistances 1409 | . . . . . . . . . . . . 84 . . . . . . . . . . 371 954 . Regen/Repaired (Parts) 10102 | . . . . . . 10 265 478 398 . 61 1095 182 549 52 305 872 690 148 . 137 2128 1221 1511 . Core Remaining (%) 68 | 100 . . 42 . . 63 . . . . 67 . . . . 82 . . . . 67 . . 57 . Volleys Fired 1128 | . 53 21 3 65 74 110 59 38 25 . 26 118 12 23 . 41 81 58 13 24 19 58 91 116 . Largest 3 | . 2 2 2 3 3 3 2 1 1 . 1 2 1 1 . 1 1 1 1 1 1 1 1 1 . Hottest 237 | . 120 120 120 211 197 183 127 141 141 . 141 197 92 92 . 237 102 93 93 93 93 93 164 157 . Shots Fired 1487 | . 106 41 6 186 193 150 65 37 26 . 26 123 12 23 . 41 81 58 12 24 19 58 90 110 . Gun 337 | . 42 . . 9 182 72 . 15 . . . . . . . . . . . 17 . . . . . Cannon 1131 | . 64 41 6 175 11 78 65 22 26 . 26 123 12 23 . 24 81 58 12 7 19 58 90 110 . Launcher 19 | . . . . 2 . . . . . . . . . . . 17 . . . . . . . . . Special . | . . . . . . . . . . . . . . . . . . . . . . . . . . Kinetic 276 | . 21 . . . . . . 1 . . . 41 . 2 . . 62 33 . 17 16 31 8 44 . Thermal 722 | . 85 41 6 184 193 76 32 4 7 . . 61 . . . 14 19 . . . . . . . . Explosive 2 | . . . . 2 . . . . . . . . . . . . . . . . . . . . . Electromagnetic 487 | . . . . . . 74 33 32 19 . 26 21 12 21 . 27 . 25 12 7 3 27 82 66 . Robot Hit Streak 31 | . 8 6 4 15 30 31 7 6 9 . 14 10 14 9 . 6 7 13 4 5 7 6 7 11 . Robot Miss Streak 8 | . 6 3 2 8 2 2 1 5 2 . 3 4 8 3 . 4 3 2 2 2 5 4 4 3 . Penetration Max 2 | . . . . . . . . . . . . . . . . . 1 1 . 1 . 2 . . . Secondary Targets 7 | . 4 . . . 3 . . . . . . . . . . . . . . . . . . . . Max Gunslinging Chain 1 | . 1 . . . 1 . . . . . . . . . . . . . . . . . . . . Shots Hit Robots 917 | . 52 26 4 106 142 127 29 22 22 . 22 56 8 23 . 14 42 44 7 16 9 27 47 72 . Core Hits 456 | . 21 13 4 45 57 43 15 14 19 . 22 36 12 25 . 22 22 11 5 7 4 17 20 22 . Critical Kills 5 | . 1 . . 1 . . 1 . . . . . . . . . . . . 2 . . . . . Critical Parts Destroyed 4 | . 1 . . . . . . . . . . . . . . . . . . 3 . . . . . Critical Strikes 39 | . 3 . . 3 12 7 1 . . . . 3 . . . . . 1 . 5 . . 2 2 . Burn 21 | . 1 . . 2 12 6 . . . . . . . . . . . . . . . . . . . Meltdown 3 | . 1 . . 1 . . 1 . . . . . . . . . . . . . . . . . . Destroy 7 | . 1 . . . . . . . . . . . . . . . . 1 . 5 . . . . . Blast 2 | . . . . . . . . . . . . 2 . . . . . . . . . . . . . Corrupt 5 | . . . . . . . . . . . . 1 . . . . . . . . . . 2 2 . Sever 1 | . . . . . . 1 . . . . . . . . . . . . . . . . . . . Melee Attacks 43 | . . . . 1 . 42 . . . . . . . . . . . . . . . . . . . Impact 1 | . . . . 1 . . . . . . . . . . . . . . . . . . . . . Slashing 42 | . . . . . . 42 . . . . . . . . . . . . . . . . . . . Piercing . | . . . . . . . . . . . . . . . . . . . . . . . . . . Sneak Attacks 15 | . . . . . . 15 . . . . . . . . . . . . . . . . . . . Combat Hostiles . | . . . . . . . . . . . . . . . . . . . . . . . . . . Follow-up Attacks . | . . . . . . . . . . . . . . . . . . . . . . . . . . Damage Inflicted 54029 | . 851 516 69 2398 2418 4698 2117 1058 1444 . 1534 4024 499 1248 . 1457 2412 3273 717 451 1168 4540 5435 11702 . Guns 4064 | . 323 . . 139 2368 972 . 149 . . . . . . . . . . . 113 . . . . . Cannons 45495 | . 528 498 69 2115 50 2657 1291 909 1444 . 1534 3471 407 1248 . 438 2383 3248 653 338 688 4540 5435 11551 . Explosions 3377 | . . . . 144 . . 826 . . . . 553 92 . . 1019 29 25 64 . 479 . . 146 . Melee 1069 | . . . . . . 1069 . . . . . . . . . . . . . . . . . . . Ramming 24 | . . 18 . . . . . . . . . . . . . . . . . . 1 . . 5 . Kinetic 15080 | . 173 . . . . . . 83 . . . 1388 . 72 . . 2021 1581 . 113 612 2597 439 6001 . Thermal 10253 | . 678 498 69 2254 2418 987 1047 97 159 . . 749 92 . . 207 362 . 64 . 426 . . 146 . Explosive 481 | . . . . 144 . . . . . . . 337 . . . . . . . . . . . . . Electromagnetic 27122 | . . . . . . 2642 1070 878 1285 . 1534 1550 407 1176 . 1250 29 1692 653 338 129 1943 4996 5550 . Impact . | . . . . . . . . . . . . . . . . . . . . . . . . . . Slashing 1069 | . . . . . . 1069 . . . . . . . . . . . . . . . . . . . Piercing . | . . . . . . . . . . . . . . . . . . . . . . . . . . Highest Corruption 24 | . . . . 1 1 . 2 2 3 8 . 10 10 . . . 4 5 4 4 24 . 21 23 . Average Corruption 4 | . . . . 1 1 . 2 2 2 4 . 5 3 . . . 3 2 4 3 10 . 6 21 . Corruption Purged 23 | . . . . . 1 . . . . . . 4 10 . . . . 4 . 4 . . . . . Corruption Blocked . | . . . . . . . . . . . . . . . . . . . . . . . . . . Effects 343 | . . . . 8 6 . 4 27 24 . . 79 20 . . . 6 30 12 5 3 . 53 66 . Message Errors 75 | . . . . 1 3 . . 4 5 . . 26 1 . . . . 6 3 1 . . 14 11 . Matter Fused 77 | . . . . . 1 . 1 16 6 . . 17 3 . . . . 5 2 1 1 . 12 12 . Heat Flow Errors 55 | . . . . 1 . . 1 1 6 . . 13 8 . . . 1 6 . 1 . . 7 10 . Energy Discharges 39 | . . . . 1 . . . 1 2 . . 8 2 . . . 2 4 4 1 1 . 2 11 . Parts Rejected 7 | . . . . . 1 . . . . . . 1 . . . . . . 1 . . . 1 3 . Parts Fused 4 | . . . . . . . . . . . . . 1 . . . . . . . . . 1 2 . Data Loss (minor) 48 | . . . . 4 1 . 2 3 1 . . 7 5 . . . 1 7 1 1 1 . 8 6 . Data Loss (major) 18 | . . . . . . . . 1 2 . . 4 . . . . 2 1 . . . . 4 4 . Misfires 5 | . . . . 1 . . . . 1 . . 3 . . . . . . . . . . . . . Alerts 4 | . . . . . . . . . 1 . . . . . . . . 1 . . . . 1 1 . Misdirections 2 | . . . . . . . . . . . . . . . . . . . . . . . 2 . . Weapon Failures 9 | . . . . . . . . 1 . . . . . . . . . . 1 . . . 1 6 . Overload Shots . | . . . . . . . . . . . . . . . . . . . . . . . . . . Overflow Damage 5525 | . . . . 36 . 900 336 33 7 . 18 248 13 71 . 12 65 395 . . 25 1053 910 1403 . Projectiles 4907 | . . . . 36 . 649 66 33 7 . 18 195 . 71 . 9 65 395 . . 4 1053 910 1396 . Explosions 367 | . . . . . . . 270 . . . . 53 13 . . 3 . . . . 21 . . 7 . Melee 251 | . . . . . . 251 . . . . . . . . . . . . . . . . . . . Knockbacks 77 | . . . . . . . . . . . . 22 . . . . 15 9 . . 7 6 1 17 . Impact . | . . . . . . . . . . . . . . . . . . . . . . . . . . Kinetic 72 | . . . . . . . . . . . . 20 . . . . 15 9 . . 6 5 1 16 . Secondary 5 | . . . . . . . . . . . . 2 . . . . . . . . 1 1 . 1 . Self-Inflicted Damage 824 | . . . . . . . 256 . . . . 398 19 . . . . 18 . . 59 . 39 35 . Shots 14 | . . . . . . . 3 . . . . 6 1 . . . . 1 . . 1 . 1 1 . Rammed 2 | . . 1 . . . . . . . . . . . . . . . . . . 1 . . . . Targets Rammed 4 | . . 1 . . . . . . . . . . . . . . . . . . 1 . . 2 . Kicked 2 | . . . . . . . . . . . . . . . . . . . . . . . . 2 . Crushed . | . . . . . . . . . . . . . . . . . . . . . . . . . . Highest Temperature 426 | . 156 171 . 344 299 220 199 277 394 . 245 426 250 72 . 353 318 232 15 247 107 9 218 252 . Average Temperature 86 | . 55 49 . 94 81 65 61 126 96 . 88 85 104 24 . 140 104 78 15 166 49 9 85 85 . Received Heat Transfer 3381 | . 96 99 . 195 315 36 288 315 66 . 108 93 . 36 . 55 277 148 . . 81 167 20 959 27 Effects 7 | . . . . . 2 . . 1 2 . . 1 . . . 1 . . . . . . . . . Energy Bleed 3 | . . . . . . . . 1 . . . 1 . . . 1 . . . . . . . . . Interference 4 | . . . . . 2 . . . 2 . . . . . . . . . . . . . . . . Siege Activations . | . . . . . . . . . . . . . . . . . . . . . . . . . . Martial Activations . | . . . . . . . . . . . . . . . . . . . . . . . . . . Shielding Activations . | . . . . . . . . . . . . . . . . . . . . . . . . . . Robots Disrupted 2 | . . . . . . . . 1 . . . . . . . . . . . . . . . 1 . Combat Hostiles 2 | . . . . . . . . 1 . . . . . . . . . . . . . . . 1 . Robots Corrupted 74 | . . . . . . 3 3 3 6 . 5 5 . 3 . 6 . 6 3 1 1 4 9 16 . Combat Hostiles 69 | . . . . . . . 3 3 6 . 5 5 . 3 . 6 . 6 3 1 1 3 8 16 . Parts Fried 329 | . . . . . . 28 10 10 12 . 22 14 5 20 . 6 . 13 4 1 . 22 81 81 . Impact Corruptions 3 | . . . . . . . . . . . . . . . . . . . . . . 2 . 1 . Robots Melted 7 | . 1 . . 2 1 2 1 . . . . . . . . . . . . . . . . . . Combat Hostiles 5 | . 1 . . 1 . 2 1 . . . . . . . . . . . . . . . . . . Parts Melted 42 | . 1 3 . 9 22 3 2 . . . . . . . . . . 2 . . . . . . . Heat Transferred 17749 | . 1628 1036 148 4255 6068 2627 1050 150 200 . . 137 100 . . 50 . . 50 . 150 . . 100 . Parts Sabotaged . | . . . . . . . . . . . . . . . . . . . . . . . . . . Parts Stolen . | . . . . . . . . . . . . . . . . . . . . . . . . . . Parts Stripped . | . . . . . . . . . . . . . . . . . . . . . . . . . . Power Chain Reactions 12 | . . . . . . . . . . . . 2 2 . . 1 1 1 1 . 2 . . 2 . Alert | -11 -10 -10 -10 -8 -8 -8 -6 -6 -6 -6 -5 -5 -5 -5 -5 -4 -4 -4 -4 -4 -4 -3 -3 -3 -2 ------- Run | Yrd Mat Min Sub Mat Sto Rec Fac Low Low Zio Pro Fac Upp Upp War Pro Fac Ext Cet Arc Hub Res Qua Frg Res Maximum Alert Level 2 | . 1 . . 1 2 . 2 . . . . 2 . . . . 1 1 2 1 1 2 1 2 1 Low Security (%) 64 | 100 99 100 . 49 26 100 . . . . . 14 . . . . 60 73 8 91 99 70 78 26 . Level 1 20 | . . . . 50 58 . 39 . . . . 6 . . . . 39 26 57 8 . 13 21 48 100 Level 2 14 | . . . . . 15 . 60 . . . . 79 . . . . . . 34 . . 15 . 25 . Level 3 . | . . . . . . . . . . . . . . . . . . . . . . . . . . Level 4 . | . . . . . . . . . . . . . . . . . . . . . . . . . . Level 5 . | . . . . . . . . . . . . . . . . . . . . . . . . . . High Security . | . . . . . . . . . . . . . . . . . . . . . . . . . . Max Security . | . . . . . . . . . . . . . . . . . . . . . . . . . . Peak Influence 685 | . 204 112 . 294 476 194 685 . . . . 569 . . . . 352 372 487 260 182 429 355 574 297 Initial 531 | . . 52 . . 96 105 531 . . . . . . . . . 101 158 184 136 . 32 222 58 297 Average 182 | . 125 30 . 194 270 63 447 . . . . 415 . . . . 187 147 360 43 83 149 159 276 285 Influence Increases 12413 | . 666 292 24 906 910 539 1126 245 350 . 260 1154 125 185 . 440 760 861 395 214 452 656 815 1038 . Destroy 0b10 Robot/C 6320 | . 300 200 20 500 540 120 340 220 300 . 240 420 100 140 . 320 200 400 160 80 120 380 480 740 . Destroy 0b10 Robot/NC 640 | . 25 25 . 70 40 240 20 . . . 5 40 . 5 . . 15 25 10 10 35 40 25 10 . Destroy Leader 1114 | . 66 30 . 164 172 . 82 10 20 . 10 94 10 40 . 30 76 24 . . 24 76 66 120 . Allied During Kill 731 | . . 37 4 17 . . . . . . 5 . . . . . . 259 170 90 149 . . . . Successful Hack 361 | . 17 . . 18 43 20 . . . . . 60 . . . . 88 28 . . . 34 53 . . Select Force Hacks 180 | . 30 . . . . 150 . . . . . . . . . . . . . . . . . . . Disable Machine 840 | . 15 . . 60 75 . 150 . . . . 225 . . . . 75 75 15 30 30 30 60 . . Destroy Structure 1222 | . 3 . . 32 10 9 84 . . . . 300 . . . . 276 50 40 4 94 66 116 138 . Advance Influence 450 | . . . . . . . 450 . . . . . . . . . . . . . . . . . . Partial Spotted 30 | . . . . . . . . . . . . . . . . . 30 . . . . . . . . Lose Combat Pursuer 525 | . 210 . . 45 30 . . 15 30 . . 15 15 . . 90 . . . . . 30 15 30 . Influence Decreases 12146 | . 530 428 24 678 867 616 691 821 395 8 260 598 640 226 . 278 597 855 385 555 390 321 1107 615 261 Entered New Map 2025 | . . 84 . . 132 166 113 233 11 8 . . 206 9 . . 61 167 147 205 . 30 175 47 231 Time Decay 8721 | . 530 334 24 638 565 450 458 568 384 . 220 578 434 217 . 278 386 568 238 290 120 291 622 498 30 Search Patrol Dispatched 100 | . . . . . . . 100 . . . . . . . . . . . . . . . . . . Lost Part 180 | . . 10 . . 20 . 20 20 . . . 20 . . . . . . . . 10 . 10 70 . Lost Ally 520 | . . . . 40 . . . . . . 40 . . . . . . 120 . 60 260 . . . . Purge Threat 600 | . . . . . 150 . . . . . . . . . . . 150 . . . . . 300 . . Squads Dispatched 46 | . 4 . . 2 3 . 4 . . . 1 10 . . . . 3 . . . 2 5 6 6 . Investigation 5 | . 1 . . . . . . . . . . 2 . . . . . . . . . 2 . . . Extermination 21 | . . . . . . . 3 . . . . 6 . . . . 2 . . . . 1 6 3 . Reinforcement 14 | . 3 . . 2 1 . 1 . . . . 1 . . . . 1 . . . 1 2 . 2 . Assault 3 | . . . . . . . . . . . 1 1 . . . . . . . . . . . 1 . Garrison 3 | . . . . . 2 . . . . . . . . . . . . . . . 1 . . . . Intercept . | . . . . . . . . . . . . . . . . . . . . . . . . . . Searches Triggered 1 | . . . . . . . 1 . . . . . . . . . . . . . . . . . . Construction Impeded 1 | . . . . . . . . . . . . . . . . . . . . . 1 . . . . Haulers Reinforced . | . . . . . . . . . . . . . . . . . . . . . . . . . . Active Scanning Responses . | . . . . . . . . . . . . . . . . . . . . . . . . . . Cargo Convoy Interrupts . | . . . . . . . . . . . . . . . . . . . . . . . . . . Stealth | -11 -10 -10 -10 -8 -8 -8 -6 -6 -6 -6 -5 -5 -5 -5 -5 -4 -4 -4 -4 -4 -4 -3 -3 -3 -2 --------- Run | Yrd Mat Min Sub Mat Sto Rec Fac Low Low Zio Pro Fac Upp Upp War Pro Fac Ext Cet Arc Hub Res Qua Frg Res Distress Signals 27 | . 4 . . 3 2 3 2 . . . . 1 . . . . . 1 2 . 1 4 2 2 . Communications Jammed 52 | . . . . . . . . . . . . 10 . . . . 37 1 . . . . . 4 . Distress Signals 47 | . . . . . . . . . . . . 10 . . . . 36 1 . . . . . . . Times Spotted 455 | . 43 10 6 37 32 7 26 12 16 . 13 29 5 7 . 19 17 23 9 12 21 38 32 40 1 Peak Tracking Total 15 | . 11 3 1 7 9 1 7 7 4 . 7 4 5 3 . 5 4 4 5 2 15 11 5 6 1 Tactical Retreats 27 | . 10 . . 1 2 . . 1 2 . . 1 1 . . 4 . 1 . . . 2 1 1 . ECM-based Alert Blocks 4 | . . . . . . . . . . . . . . . . . . 4 . . . . . . . Traps | -11 -10 -10 -10 -8 -8 -8 -6 -6 -6 -6 -5 -5 -5 -5 -5 -4 -4 -4 -4 -4 -4 -3 -3 -3 -2 ------- Run | Yrd Mat Min Sub Mat Sto Rec Fac Low Low Zio Pro Fac Upp Upp War Pro Fac Ext Cet Arc Hub Res Qua Frg Res Traps Triggered 9 | . 1 . . 3 1 . . . . . . . . . . . 3 1 . . . . . . . Indirectly 2 | . . . . . . . . . . . . . . . . . 2 . . . . . . . . Trap Hack Attempts . | . . . . . . . . . . . . . . . . . . . . . . . . . . Triggered . | . . . . . . . . . . . . . . . . . . . . . . . . . . Disarmed . | . . . . . . . . . . . . . . . . . . . . . . . . . . Reprogrammed . | . . . . . . . . . . . . . . . . . . . . . . . . . . Reused . | . . . . . . . . . . . . . . . . . . . . . . . . . . Traps Extracted . | . . . . . . . . . . . . . . . . . . . . . . . . . . Installed . | . . . . . . . . . . . . . . . . . . . . . . . . . . Triggered . | . . . . . . . . . . . . . . . . . . . . . . . . . . Machines | -11 -10 -10 -10 -8 -8 -8 -6 -6 -6 -6 -5 -5 -5 -5 -5 -4 -4 -4 -4 -4 -4 -3 -3 -3 -2 ---------- Run | Yrd Mat Min Sub Mat Sto Rec Fac Low Low Zio Pro Fac Upp Upp War Pro Fac Ext Cet Arc Hub Res Qua Frg Res Machines Disabled 65 | . 1 1 . 4 5 . 10 2 2 . . 15 . . 1 . 5 5 1 2 2 3 4 2 . Max in Single Turn 5 | . 1 1 . 1 1 . 5 1 2 . . 4 . . 1 . 3 1 1 1 1 2 1 1 . Garrison Access 5 | . . . . 1 1 . 1 . . . . . . . . . 1 . . . . 1 . . . Network Hub 1 | . . . . . . . . . . . . . . . . . . . . . 1 . . . . Machines Repaired . | . . . . . . . . . . . . . . . . . . . . . . . . . . Machines Dismantled 7 | . . . . . . . . . . . . . . . 1 . . 4 1 . 1 . . . . Machines Sabotaged . | . . . . . . . . . . . . . . . . . . . . . . . . . . Overloaded Fab Kills . | . . . . . . . . . . . . . . . . . . . . . . . . . . Hacking | -11 -10 -10 -10 -8 -8 -8 -6 -6 -6 -6 -5 -5 -5 -5 -5 -4 -4 -4 -4 -4 -4 -3 -3 -3 -2 --------- Run | Yrd Mat Min Sub Mat Sto Rec Fac Low Low Zio Pro Fac Upp Upp War Pro Fac Ext Cet Arc Hub Res Qua Frg Res Machines Accessed 101 | . 7 . 1 9 11 11 6 2 2 . . 13 . . 3 . 11 9 1 . . 4 10 1 . Terminals 66 | . 6 . . 5 8 5 1 1 . . . 11 . . . . 7 9 1 . . 3 8 1 . Fabricators . | . . . . . . . . . . . . . . . . . . . . . . . . . . Repair Stations . | . . . . . . . . . . . . . . . . . . . . . . . . . . Recycling Units 12 | . 1 . . 1 2 5 2 . . . . . . . . . 1 . . . . . . . . Scanalyzers 6 | . . . . 2 . . 1 . . . . 1 . . . . . . . . . 1 1 . . Garrison Access 9 | . . . . 1 1 . 2 . . . . 1 . . . . 3 . . . . . 1 . . Total Hacks 231 | . 18 . 3 23 26 25 8 5 2 . . 33 . . 6 . 19 22 2 . . 10 25 4 . Successful 114 | . 11 . 3 15 13 13 3 5 2 . . 11 . . 6 . 10 5 . . . 3 11 3 . Failed 114 | . 7 . . 7 13 12 4 . . . . 21 . . . . 9 17 2 . . 7 14 1 . Catastrophic 20 | . . . . . 2 3 1 . . . . 4 . . . . 2 1 1 . . 3 3 . . Database Lockouts 3 | . . . . 1 . . 1 . . . . 1 . . . . . . . . . . . . . Manual 135 | . 18 . 1 13 16 22 . . . . . 19 . . . . 12 6 1 . . 7 16 4 . Terminals 168 | . 17 . . 15 19 12 1 4 . . . 30 . . . . 15 22 2 . . 7 20 4 . Fabricators . | . . . . . . . . . . . . . . . . . . . . . . . . . . Repair Stations . | . . . . . . . . . . . . . . . . . . . . . . . . . . Recycling Units 22 | . 1 . . 1 5 11 3 . . . . . . . . . 1 . . . . . . . . Scanalyzers 14 | . . . . 5 . . 2 . . . . 2 . . . . . . . . . 3 2 . . Garrison Access 13 | . . . . 2 2 . 2 . . . . 1 . . . . 3 . . . . . 3 . . Terminal Hacks 47 | . 4 . 3 4 4 3 . 5 2 . . 4 . . 6 . 3 4 . . . . 4 1 . Record 14 | . . . 3 . . . . 4 1 . . . . . 6 . . . . . . . . . . Part Schematic 1 | . . . . . . 1 . . . . . . . . . . . . . . . . . . . Robot Analysis 2 | . 2 . . . . . . . . . . . . . . . . . . . . . . . . Open Door 8 | . . . . . 2 . . 1 1 . . . . . . . . 4 . . . . . . . Branch Access Points 2 | . . . . 1 . . . . . . . 1 . . . . . . . . . . . . . Terminal Index 4 | . 1 . . 1 . . . . . . . 1 . . . . . . . . . . 1 . . Recycling Unit Index 2 | . 1 . . 1 . . . . . . . . . . . . . . . . . . . . . Alert Level 2 | . . . . . . . . . . . . 1 . . . . . . . . . . 1 . . Unreport Threat 4 | . . . . . 1 . . . . . . . . . . . 1 . . . . . 2 . . Locate Traps 3 | . . . . . 1 . . . . . . . . . . . 2 . . . . . . . . Zone Layout 3 | . . . . 1 . . . . . . . 1 . . . . . . . . . . . 1 . Release Object 2 | . . . . . . 2 . . . . . . . . . . . . . . . . . . . Fabricator Hacks . | . . . . . . . . . . . . . . . . . . . . . . . . . . Repair Station Hacks . | . . . . . . . . . . . . . . . . . . . . . . . . . . Recycling Unit Hacks 3 | . . . . 1 1 . 1 . . . . . . . . . . . . . . . . . . Retrieve Components 3 | . . . . 1 1 . 1 . . . . . . . . . . . . . . . . . . Scanalyzer 8 | . . . . 3 . . 1 . . . . 1 . . . . . . . . . 2 1 . . Retrieve Study 8 | . . . . 3 . . 1 . . . . 1 . . . . . . . . . 2 1 . . Garrison Access Hacks 4 | . . . . 1 1 . 1 . . . . . . . . . 1 . . . . . . . . Seal Access 4 | . . . . 1 1 . 1 . . . . . . . . . 1 . . . . . . . . Unauthorized Hacks 52 | . 7 . . 6 7 10 . . . . . 6 . . . . 6 1 . . . 1 6 2 . Terminals 45 | . 6 . . 6 7 4 . . . . . 6 . . . . 6 1 . . . 1 6 2 . Track 1 | . . . . . . . . . . . . . . . . . . . . . . . . 1 . Botnet 10 | . 1 . . 1 1 1 . . . . . 1 . . . . 1 1 . . . 1 1 1 . Skim 34 | . 5 . . 5 6 3 . . . . . 5 . . . . 5 . . . . . 5 . . Fabricators . | . . . . . . . . . . . . . . . . . . . . . . . . . . Repair Stations . | . . . . . . . . . . . . . . . . . . . . . . . . . . Recycling Units 7 | . 1 . . . . 6 . . . . . . . . . . . . . . . . . . . Mask 1 | . . . . . . 1 . . . . . . . . . . . . . . . . . . . Tunnel 6 | . 1 . . . . 5 . . . . . . . . . . . . . . . . . . . Scanalyzers . | . . . . . . . . . . . . . . . . . . . . . . . . . . Garrison Access . | . . . . . . . . . . . . . . . . . . . . . . . . . . Data Cores Recovered 5 | . . . . 1 . . . . . . . . . . . . . 1 . . . 1 2 . . Used 2 | . . . . . . . . . . . . . . . . . . . . . . 1 1 . . Hacking Detections 71 | . 5 . . 6 7 8 3 1 . . . 11 . . . . 8 8 1 . . 4 8 1 . Full Trace Events 6 | . . . . . . 4 . 1 . . . 1 . . . . . . . . . . . . . Feedback Events . | . . . . . . . . . . . . . . . . . . . . . . . . . . Feedback Blocked . | . . . . . . . . . . . . . . . . . . . . . . . . . . Robot Schematics Acquired . | . . . . . . . . . . . . . . . . . . . . . . . . . . Robots Built . | . . . . . . . . . . . . . . . . . . . . . . . . . . Authchips . | . . . . . . . . . . . . . . . . . . . . . . . . . . Time . | . . . . . . . . . . . . . . . . . . . . . . . . . . Total Robot Build Rating . | . . . . . . . . . . . . . . . . . . . . . . . . . . Part Schematics Acquired 1 | . . . . . . 1 . . . . . . . . . . . . . . . . . . . Parts Built . | . . . . . . . . . . . . . . . . . . . . . . . . . . Authchips . | . . . . . . . . . . . . . . . . . . . . . . . . . . Time . | . . . . . . . . . . . . . . . . . . . . . . . . . . Total Part Build Rating . | . . . . . . . . . . . . . . . . . . . . . . . . . . Part Studies Acquired 8 | . . . . 3 . . 1 . . . . 1 . . . . . . . . . 2 1 . . Parts Repaired . | . . . . . . . . . . . . . . . . . . . . . . . . . . Time . | . . . . . . . . . . . . . . . . . . . . . . . . . . Parts Recycled . | . . . . . . . . . . . . . . . . . . . . . . . . . . Recycled Matter . | . . . . . . . . . . . . . . . . . . . . . . . . . . Retrieved Matter . | . . . . . . . . . . . . . . . . . . . . . . . . . . Retrieved Components 22 | . . . . 10 10 . 2 . . . . . . . . . . . . . . . . . . Parts Scanalyzed . | . . . . . . . . . . . . . . . . . . . . . . . . . . Part Schematics Acquired . | . . . . . . . . . . . . . . . . . . . . . . . . . . Parts Damaged . | . . . . . . . . . . . . . . . . . . . . . . . . . . Bothacking | -11 -10 -10 -10 -8 -8 -8 -6 -6 -6 -6 -5 -5 -5 -5 -5 -4 -4 -4 -4 -4 -4 -3 -3 -3 -2 ------------ Run | Yrd Mat Min Sub Mat Sto Rec Fac Low Low Zio Pro Fac Upp Upp War Pro Fac Ext Cet Arc Hub Res Qua Frg Res Used RIF Installer . | . . . . . . . . . . . . . . . . . . . . . . . . . . Robots Hacked . | . . . . . . . . . . . . . . . . . . . . . . . . . . Non-combat . | . . . . . . . . . . . . . . . . . . . . . . . . . . Combat . | . . . . . . . . . . . . . . . . . . . . . . . . . . Robot Hacks Applied . | . . . . . . . . . . . . . . . . . . . . . . . . . . Relay Couplers Released 3 | . . . . . . . . . . . . . . . . . . . . . . 3 . . . Machine Destruction 3 | . . . . . . . . . . . . . . . . . . . . . . 3 . . . Fabnet Peak Effective % . | . . . . . . . . . . . . . . . . . . . . . . . . . . Robots Rewired 16 | . . . . . . . . . . . 2 . . . . . . 14 . . . . . . . Allies Hacked . | . . . . . . . . . . . . . . . . . . . . . . . . . . Hacks Repelled . | . . . . . . . . . . . . . . . . . . . . . . . . . . Allies | -11 -10 -10 -10 -8 -8 -8 -6 -6 -6 -6 -5 -5 -5 -5 -5 -4 -4 -4 -4 -4 -4 -3 -3 -3 -2 -------- Run | Yrd Mat Min Sub Mat Sto Rec Fac Low Low Zio Pro Fac Upp Upp War Pro Fac Ext Cet Arc Hub Res Qua Frg Res Total Allies 37 | . . 5 . . . . . . . . 2 . . . . . . 25 5 . . . . . . Largest Group 21 | . . 5 5 4 . . . . . . 2 . . . . . . 17 21 20 15 . . . . Highest-Rated Group 1226 | . . 81 85 54 . . . . . . 59 . . . . . . 808 1226 1176 867 . . . . Highest-Rated Ally 159 | . . 31 31 16 . . . . . . 30 . . . . . . 159 159 159 96 . . . . Total Orders 15 | . . . . . . . . . . . . . . . . . . 5 2 7 1 . . . . STAY 11 | . . . . . . . . . . . . . . . . . . 3 1 6 1 . . . . FOLLOW 4 | . . . . . . . . . . . . . . . . . . 2 1 1 . . . . . Ally Attacks 248 | . . 14 31 19 . . . . . . 9 . . . . . . 74 24 23 54 . . . . Total Damage 6005 | . . 144 281 194 . . . . . . 75 . . . . . . 1820 568 495 2428 . . . . Kills 43 | . . 5 4 6 . . . . . . . . . . . . . 8 6 2 12 . . . . Allies Corrupted 5 | . . . . . . . . . . . . . . . . . . . . . 5 . . . . Allies Melted . | . . . . . . . . . . . . . . . . . . . . . . . . . . Intel | -11 -10 -10 -10 -8 -8 -8 -6 -6 -6 -6 -5 -5 -5 -5 -5 -4 -4 -4 -4 -4 -4 -3 -3 -3 -2 ------- Run | Yrd Mat Min Sub Mat Sto Rec Fac Low Low Zio Pro Fac Upp Upp War Pro Fac Ext Cet Arc Hub Res Qua Frg Res Active Infowar (turns) 18689 | . . . . . . . 935 1250 1253 . 1565 2791 1490 2627 533 805 904 1133 . . 211 646 1587 959 . Optics 1 | . . . . . . . . . . . . . . . . . 1 . . . . . . . . Sensors 17276 | . . . . . . . 935 1250 1253 . 1565 2704 1490 2627 533 805 903 285 . . 211 646 1521 548 . Jamming 2487 | . . . . . . . . . . . . 130 . . . 38 756 973 . . . . 66 524 . ECM 27 | . . . . . . . . . . . . . . . . . . 27 . . . . . . . Robot Analysis Total 2 | . 2 . . . . . . . . . . . . . . . . . . . . . . . . Derelict Logs Recovered 12 | . . 1 2 . . . . 1 1 . 1 . 1 3 . 2 . . . . . . . . . Drone Launches . | . . . . . . . . . . . . . . . . . . . . . . . . . . Drone Recoveries . | . . . . . . . . . . . . . . . . . . . . . . . . . . Exploration | -11 -10 -10 -10 -8 -8 -8 -6 -6 -6 -6 -5 -5 -5 -5 -5 -4 -4 -4 -4 -4 -4 -3 -3 -3 -2 ------------- Run | Yrd Mat Min Sub Mat Sto Rec Fac Low Low Zio Pro Fac Upp Upp War Pro Fac Ext Cet Arc Hub Res Qua Frg Res Turns Passed 40213 | 3 1588 1228 1114 2363 1694 5919 1143 1701 1599 1400 1727 3125 1490 2627 533 805 904 2336 508 1930 261 679 2117 1354 65 Spaces Moved 19454 | 1 672 561 345 972 709 2325 693 1033 867 935 1047 1214 590 1049 405 1098 1058 1090 270 142 137 413 1292 502 34 Core . | . . . . . . . . . . . . . . . . . . . . . . . . . . Treads 11613 | 1 672 561 345 972 709 899 693 1033 434 . . 285 . 720 198 . 817 1090 270 142 137 413 1005 217 . Legs 3952 | . . . . . . . . . 433 935 1047 378 588 329 . . . . . . . . . 242 . Wheels 1426 | . . . . . . 1426 . . . . . . . . . . . . . . . . . . . Hover 287 | . . . . . . . . . . . . . . . . . . . . . . . 287 . . Flight 2176 | . . . . . . . . . . . . 551 2 . 207 1098 241 . . . . . . 43 34 Fastest Speed 49 | 160 160 160 320 188 188 72 94 94 149 149 149 149 246 193 49 49 49 49 132 132 132 105 105 178 183 Average Speed 158 | 160 205 205 320 206 188 153 131 134 171 149 149 211 246 215 125 49 49 156 132 132 132 109 130 190 183 Slowest Speed 320 | 160 320 320 320 240 190 192 163 155 211 149 149 246 246 282 193 49 49 234 132 132 132 132 178 212 183 Overloaded Moves . | . . . . . . . . . . . . . . . . . . . . . . . . . . Propulsion Burnouts . | . . . . . . . . . . . . . . . . . . . . . . . . . . Robots Hopped . | . . . . . . . . . . . . . . . . . . . . . . . . . . Potential Cave-ins 7 | . . . . . . . . . . . . 4 . . . . . . . . . . . 3 . Cave-ins Triggered . | . . . . . . . . . . . . . . . . . . . . . . . . . . Teleports 1 | . . . . . . . . . . . . . . . . . . . . . . . . 1 . Exploration Rate (%) 62 | 1 95 97 27 70 84 98 26 93 87 87 98 29 81 97 72 90 26 80 64 76 16 18 88 16 2 Regions Visited 25 Branch Regions 18 Pre-discovered Areas 13 | . 1 1 1 . 1 5 . . . 1 . 1 1 . 1 . . . . . . . . . . Known Exits Taken 21 | . . . . 1 1 1 1 1 1 1 1 1 1 1 1 1 1 1 1 1 1 1 1 1 . Unknown Exits Taken 4 | 1 1 1 1 . . . . . . . . . . . . . . . . . . . . . . Scrap Searched 29 | . . 3 2 . . . . 3 5 4 3 . 1 4 . 4 . . . . . . . . . Spaces Dug 122 | . . . . . 4 5 13 1 . . . 36 . . . 7 14 . 1 . 3 15 18 5 . Terrain Destroyed 784 | . . . . 29 6 9 81 2 3 . . 207 1 . . 20 158 27 20 1 26 34 75 85 . Melee 1 | . . . . . . 1 . . . . . . . . . . . . . . . . . . . Projectile 407 | . . . . 8 6 8 19 2 3 . . 68 . . . 13 105 27 4 1 15 34 39 55 . AOE 376 | . . . . 21 . . 62 . . . . 139 1 . . 7 53 . 16 . 11 . 36 30 . Terrain Rammed . | . . . . . . . . . . . . . . . . . . . . . . . . . . Walls Destroyed . | . . . . . . . . . . . . . . . . . . . . . . . . . . Machines Disabled . | . . . . . . . . . . . . . . . . . . . . . . . . . . Actions | -11 -10 -10 -10 -8 -8 -8 -6 -6 -6 -6 -5 -5 -5 -5 -5 -4 -4 -4 -4 -4 -4 -3 -3 -3 -2 --------- Run | Yrd Mat Min Sub Mat Sto Rec Fac Low Low Zio Pro Fac Upp Upp War Pro Fac Ext Cet Arc Hub Res Qua Frg Res Total 27444 | 2 771 597 351 1192 920 4497 864 1304 952 943 1184 1642 617 1395 423 1317 1369 1625 402 1860 193 583 1628 777 36 Wait 5830 | . 10 7 2 57 82 1898 73 208 33 . 87 233 3 303 . 165 187 280 99 1690 24 85 186 116 2 Move 19429 | . 671 560 344 971 708 2324 692 1032 866 934 1046 1213 589 1048 404 1097 1057 1089 269 141 136 412 1291 501 34 Hop . | . . . . . . . . . . . . . . . . . . . . . . . . . . Pick Up 231 | . 12 6 2 28 13 50 12 7 7 3 1 17 2 7 3 4 13 6 5 . . 9 15 9 . Fast Attach 65 | . 7 . . 6 8 2 2 . 1 . 1 10 3 1 2 1 7 1 1 2 2 1 1 6 . Attach 42 | . 1 1 . 5 3 1 6 2 1 1 . 5 . . 2 1 2 2 2 . . 2 . 5 . Detach 25 | . 1 . . . 1 5 1 3 2 1 . 1 . 1 2 . 2 2 1 . 1 1 . . . Swap 169 | 2 6 1 . 22 11 4 7 7 10 1 7 22 3 . . 6 1 9 . 1 3 6 28 12 . Drop 271 | . 10 . . 37 20 61 12 7 7 3 1 23 5 12 2 2 19 6 4 2 3 9 16 10 . Fire 1128 | . 53 21 3 65 74 110 59 38 25 . 26 118 12 23 . 41 81 58 13 24 19 58 91 116 . Melee 43 | . . . . 1 . 42 . . . . . . . . . . . . . . . . . . . Ram . | . . . . . . . . . . . . . . . . . . . . . . . . . . Kick 2 | . . . . . . . . . . . . . . . . . . . . . . . . 2 . Crush 2 | . . 1 . . . . . . . . . . . . . . . . . . 1 . . . . Escape Stasis . | . . . . . . . . . . . . . . . . . . . . . . . . . . Rewire 155 | . . . . . . . . . . . 15 . . . . . . 140 . . . . . . . Trap . | . . . . . . . . . . . . . . . . . . . . . . . . . . Miscellaneous 52 | . . . . . . . . . . . . . . . 8 . . 32 8 . 4 . . . . Route ------- -11/Scrapyard -10/Materials (discovered 5 exits: [*Mat x3] / [*Min] / *Sub) -10/Mines (discovered 3 exits: [*Mat x2] / *Sub) -10/Subcaves -8/Materials (discovered 5 exits: *Fac x3 / *Sto x2) -8/Storage (discovered 2 exits: *Fac / *Rec) -8/Recycling -6/Factory (discovered 6 exits: *Fac x4 / *Low x2) -6/Lower Caves -6/Lower Caves (discovered 2 exits: Fac / *Zio) -6/Zion -5/Proximity Caves -5/Factory (discovered 4 exits: *Fac x2 / *Upp x2) -5/Upper Caves -5/Upper Caves (discovered 2 exits: *Fac / *War) -5/Warlord -4/Proximity Caves -4/Factory (discovered 5 exits: *Res / *Upp x2 / *Ext x2) -4/Extension (discovered 3 exits: *Res x2 / *Cet) -4/Cetus (discovered 3 exits: *Res x2 / *Arc) -4/Archives (discovered 2 exits: *Res / *Hub) -4/Hub_04(d) (discovered 2 exits: *Res x2) -3/Research (discovered 3 exits: Res / *Qua x2) -3/Quarantine (discovered 3 exits: *Res / *Sec / *Frg) -3/Protoforge -2/Research (discovered 1 exit: Acc) History --------- Turn | Location | Event 4 | -11/Scrapyard | Discovered new exit (range 0) 4 | -11/Scrapyard | Entered Materials 279 | -10/Materials | Discovered new exit (range 9) 308 | -10/Materials | Build established: Mutant 535 | -10/Materials | Discovered new exit (range 3) 847 | -10/Materials | Discovered new exit (range 14) 1135 | -10/Materials | Discovered new exit (range 10) 1293 | -10/Materials | Discovered new exit (range 3) 1592 | -10/Materials | Entered Mines 1716 | -10/Mines | Assisted by bots powering up and referring to "LRC-V3" 1776 | -10/Mines | Learned location of Recycling (-8) 1884 | -10/Mines | Discovered new exit (range 7) 2157 | -10/Mines | Found a hidden stash of uninstalled traps 2517 | -10/Mines | Discovered new exit (range 8) 2552 | -10/Mines | Discovered new exit (range 6) 2820 | -10/Mines | Entered Subcaves 2820 | -10/Subcaves | Accompanied by 5 allies 2825 | -10/Subcaves | Led the pair of lost Derelicts to an unsafe place 2843 | -10/Subcaves | Learned location of Storage (-8) 3112 | -10/Subcaves | Learned location of 2 exits from Materials 3454 | -10/Subcaves | Visited Clippyterm 3463 | -10/Subcaves | Learned 40 Factory zone layouts 3531 | -10/Subcaves | Core integrity fell below 50% 3727 | -10/Subcaves | Discovered new exit (range 9) 3934 | -10/Subcaves | Entered Materials 3934 | -8/Materials | Accompanied by 4 allies 3934 | -8/Materials | Evolved 4 slots: Propulsion x2, Utility x1, Weapon x1 3935 | -8/Materials | Identified exit to Factory 4405 | -8/Materials | Build established: Tank 4635 | -8/Materials | Discovered new exit (range 15) 4759 | -8/Materials | Identified exit to Storage 5591 | -8/Materials | Learned location of 1 exit from Lower Caves 5632 | -8/Materials | Learned Factory fabricator intel 5682 | -8/Materials | Learned Factory stockpile data 5695 | -8/Materials | Learned Storage emergency access door positions 5698 | -8/Materials | Learned Storage machine intel 5710 | -8/Materials | Central database locked down 5732 | -8/Materials | Learned location of 3 exits from Factory 5767 | -8/Materials | Learned Factory trap positions 5926 | -8/Materials | Build established: Gunner 6297 | -8/Materials | Entered Storage 6300 | -8/Storage | Loaded intel: 41 machine locations 6738 | -8/Storage | Garrison activated, responded to threat 6808 | -8/Storage | Destroyed 8 combat bots 7561 | -8/Storage | Learned location of 2 exits from Lower Caves 7633 | -8/Storage | Identified exit to Recycling 7792 | -8/Storage | Learned location of Zion (-6) 7847 | -8/Storage | Learned Storage emergency access door positions 7879 | -8/Storage | Learned Storage stockpile data 7922 | -8/Storage | Learned location of 1 exit from Storage 7986 | -8/Storage | Used back door to open Recycling access 7991 | -8/Storage | Entered Recycling 7992 | -8/Recycling | Identified exit to Factory 9383 | -8/Recycling | Entered Scraplab 9392 | -8/Recycling | Found Prototype Device 9392 | -8/Recycling | Identified Scrap Engine 9802 | -8/Recycling | Build established: Mutant 10114 | -8/Recycling | Build established: Construct 13910 | -8/Recycling | Entered Factory 13910 | -6/Factory | Evolved 4 slots: Power x1, Propulsion x1, Utility x2 13911 | -6/Factory | Identified exit to Factory 13911 | -6/Factory | Identified exit to Lower Caves 13914 | -6/Factory | Loaded intel: 64 trap records 13916 | -6/Factory | Loaded intel: 6 fabricator locations 14143 | -6/Factory | Central database locked down 14260 | -6/Factory | Search patrols dispatched 15053 | -6/Factory | Entered Lower Caves 15054 | -6/Lower Caves | Identified exit to Lower Caves 15970 | -6/Lower Caves | Attracted the attention of an 0b10 base 16037 | -6/Lower Caves | Learned Armory stockpile data 16037 | -6/Lower Caves | Learned Research stockpile data 16051 | -6/Lower Caves | Destroyed 7 combat bots 16754 | -6/Lower Caves | Entered another Lower Caves area 16755 | -6/Lower Caves | Identified exit to Zion 17194 | -6/Lower Caves | Attracted the attention of an 0b10 checkpoint 17271 | -6/Lower Caves | Acquired the password to a Derelict Tinkerer's latest research 17424 | -6/Lower Caves | Caught by Unaware searching for contraband prototypes 17453 | -6/Lower Caves | Caught by Unaware searching for contraband prototypes 18044 | -6/Lower Caves | Entered a destroyed Warlord outpost 18353 | -6/Lower Caves | Entered Zion 18413 | -6/Zion | System corruption cleaned by Quarantine Array 18453 | -6/Zion | System corruption cleaned by Quarantine Array 18472 | -6/Zion | System corruption cleaned by Quarantine Array 18570 | -6/Zion | Discovered new exit (range 11) 18792 | -6/Zion | Learned location of Quarantine (-3) 18933 | -6/Zion | Acquired unknown access codes intercepted by a Zionite 19236 | -6/Zion | Met Imprinter 19750 | -6/Zion | Identified exit to Proximity Caves 19753 | -6/Zion | Entered Proximity Caves 19870 | -5/Proximity Caves | Attracted the attention of an 0b10 checkpoint 20079 | -5/Proximity Caves | Attracted the attention of an 0b10 outpost 20148 | -5/Proximity Caves | Destroyed 7 combat bots 20443 | -5/Proximity Caves | Learned 12 Factory zone layouts 21081 | -5/Proximity Caves | Received a Behemoth hack from an annoying Tinkerer 21102 | -5/Proximity Caves | Discovered exit to Factory (range 9) 21480 | -5/Proximity Caves | Entered Factory 21480 | -5/Factory | Evolved 2 slots: Propulsion x1, Utility x1 21529 | -5/Factory | Discovered new exit (range 15) 21643 | -5/Factory | Identified exit to Upper Caves 21986 | -5/Factory | Discovered new exit (range 13) 22025 | -5/Factory | Identified exit to Factory 22081 | -5/Factory | Discovered exit to Upper Caves (range 6) 22418 | -5/Factory | Central database locked down 22971 | -5/Factory | Discovered exit to Factory (range 12) 23580 | -5/Factory | First assault squad dispatched 23902 | -5/Factory | Learned Extension emergency access door positions 23931 | -5/Factory | Learned Research recycling unit intel 23950 | -5/Factory | Learned Armory garrison access intel 23961 | -5/Factory | Learned location of Upper Caves (-5) 23962 | -5/Factory | Loaded intel: 4 scanalyzer locations 23974 | -5/Factory | Learned location of 1 exit from Research 23995 | -5/Factory | Learned 4 Factory zone layouts 24222 | -5/Factory | System corruption reached 10% 24605 | -5/Factory | Entered Upper Caves 25756 | -5/Upper Caves | Encountered a Warlord checkpoint 26033 | -5/Upper Caves | Learned location of Warlord (-5) 26058 | -5/Upper Caves | Discovered new exit (range 12) 26088 | -5/Upper Caves | Identified exit to Upper Caves 26095 | -5/Upper Caves | Entered another Upper Caves area 26295 | -5/Upper Caves | Discovered exit to Factory (range 6) 26878 | -5/Upper Caves | Learned Factory terminal intel 27298 | -5/Upper Caves | Learned 4 Factory zone layouts 27318 | -5/Upper Caves | Discovered new exit (range 5) 27333 | -5/Upper Caves | Identified exit to Warlord 28722 | -5/Upper Caves | Entered Warlord 28871 | -5/Warlord | Learned Quarantine trap positions 28873 | -5/Warlord | Learned 4 Quarantine zone layouts 28875 | -5/Warlord | Learned Research garrison access intel 28875 | -5/Warlord | Learned Research fabricator intel 28875 | -5/Warlord | Learned Armory scanalyzer intel 29018 | -5/Warlord | Found Prototype Device 29018 | -5/Warlord | Identified Thermal Barrier 29028 | -5/Warlord | Found Prototype Device 29028 | -5/Warlord | Identified Exp. Phase Shifter 29250 | -5/Warlord | Discovered new exit (range 12) 29254 | -5/Warlord | Identified exit to Proximity Caves 29255 | -5/Warlord | Entered Proximity Caves 29904 | -4/Proximity Caves | Attracted the attention of an 0b10 checkpoint 29928 | -4/Proximity Caves | Discovered exit to Factory (range 15) 30024 | -4/Proximity Caves | Learned 4 Research zone layouts 30060 | -4/Proximity Caves | Entered Factory 30060 | -4/Factory | Evolved 2 slots: Utility x1, Weapon x1 30061 | -4/Factory | Identified exit to Upper Caves 30061 | -4/Factory | Identified exit to Extension 30062 | -4/Factory | Identified exit to Research 30063 | -4/Factory | Loaded intel: 28 terminal locations 30584 | -4/Factory | Spotted B-86 Titan 30621 | -4/Factory | Discovered exit to Upper Caves (range 14) 30840 | -4/Factory | Learned Research interactive machine intel 30853 | -4/Factory | Learned 4 Quarantine zone layouts 30855 | -4/Factory | Learned Armory repair station intel 30886 | -4/Factory | Learned location of 1 exit from Proximity Caves 30964 | -4/Factory | Entered Extension 31794 | -4/Extension | Rescued a captive Derelict 31842 | -4/Extension | Rescued a captive Derelict 31843 | -4/Extension | Rescued a captive Derelict 31903 | -4/Extension | Rescued a captive Derelict 31937 | -4/Extension | Rescued a captive Derelict 31938 | -4/Extension | Rescued a captive Derelict 32065 | -4/Extension | Build established: Commander-Construct 32145 | -4/Extension | Rescued a captive Derelict 32416 | -4/Extension | Spotted B-86 Titan 32430 | -4/Extension | Destroyed B-86 Titan 32438 | -4/Extension | Spotted B-86 Titan 32446 | -4/Extension | Destroyed B-86 Titan 32473 | -4/Extension | Lost 5 allies 32772 | -4/Extension | Lost 3 allies 33131 | -4/Extension | Rescued a captive Derelict 33132 | -4/Extension | Rescued a captive Derelict 33146 | -4/Extension | Rescued A7 33176 | -4/Extension | Rescued a captive Derelict 33229 | -4/Extension | Discovered new exit (range 6) 33244 | -4/Extension | Identified exit to Cetus 33300 | -4/Extension | Entered Cetus 33300 | -4/Cetus | Accompanied by 16 allies (A7) 33305 | -4/Cetus | Acquired a Cetus Manufacturing Module code from A7 33340 | -4/Cetus | Spotted Cetus Guard 33340 | -4/Cetus | Spotted Cetus Guard 33341 | -4/Cetus | Spotted Cetus Guard 33342 | -4/Cetus | Allies destroyed Cetus Guard 33345 | -4/Cetus | Allies destroyed Cetus Guard 33345 | -4/Cetus | Spotted Cetus Guard 33351 | -4/Cetus | Allies destroyed Cetus Guard 33353 | -4/Cetus | Destroyed Cetus Guard 33430 | -4/Cetus | Escorted A7 to Cetus Mainframe 33439 | -4/Cetus | Started Cetus Manufacturing Module 33455 | -4/Cetus | Discovered new exit (range 15) 33464 | -4/Cetus | Manufactured an Enhanced Grunt 33479 | -4/Cetus | Spotted Cetus Guard 33479 | -4/Cetus | Spotted Cetus Guard 33481 | -4/Cetus | Spotted Cetus Guard 33484 | -4/Cetus | Allies destroyed Cetus Guard 33484 | -4/Cetus | Spotted Cetus Guard 33485 | -4/Cetus | Destroyed Cetus Guard 33487 | -4/Cetus | Destroyed Cetus Guard 33489 | -4/Cetus | Manufactured an Enhanced Grunt 33493 | -4/Cetus | Allies destroyed Cetus Guard 33509 | -4/Cetus | Met Revision 17 33514 | -4/Cetus | Manufactured an Enhanced Grunt 33539 | -4/Cetus | Manufactured an Enhanced Grunt 33564 | -4/Cetus | Manufactured an Enhanced Grunt 33730 | -4/Cetus | Identified exit to Archives 33808 | -4/Cetus | Entered Archives 33808 | -4/Archives | Accompanied by 20 allies (A7) 33813 | -4/Archives | Received a hacking code to weaken MAIN.C 33865 | -4/Archives | Lost 4 allies 33966 | -4/Archives | Discovered new exit (range 15) 35661 | -4/Archives | Discovered exit to Research (range 16) 35694 | -4/Archives | Identified exit to Hub_04(d) 35738 | -4/Archives | Entered Hub_04(d) 35738 | -4/Hub_04(d) | Accompanied by 15 allies 35777 | -4/Hub_04(d) | Discovered exit to Research (range 16) 35798 | -4/Hub_04(d) | Discovered exit to Research (range 14) 35936 | -4/Hub_04(d) | Network Hub disabled 35939 | -4/Hub_04(d) | Garrison activated, responded to threat 35942 | -4/Hub_04(d) | Spotted Lightning 35942 | -4/Hub_04(d) | Spotted Lightning 35942 | -4/Hub_04(d) | Spotted Lightning 35943 | -4/Hub_04(d) | Allies destroyed Lightning 35946 | -4/Hub_04(d) | Allies destroyed Lightning 35949 | -4/Hub_04(d) | Spotted Lightning 35952 | -4/Hub_04(d) | Spotted Lightning 35952 | -4/Hub_04(d) | Spotted Lightning 35952 | -4/Hub_04(d) | Spotted Lightning 35960 | -4/Hub_04(d) | Spotted Lightning 35963 | -4/Hub_04(d) | Spotted Lightning 35983 | -4/Hub_04(d) | System corruption reached 10% 35987 | -4/Hub_04(d) | Destroyed Lightning 35992 | -4/Hub_04(d) | Lost 15 allies 35999 | -4/Hub_04(d) | Entered Research 35999 | -3/Research | Evolved 2 slots: Power x1, Utility x1 36000 | -3/Research | Identified exit to Quarantine 36002 | -3/Research | Identified exit to Research 36004 | -3/Research | Loaded intel: 46 interactive machine locations 36005 | -3/Research | Loaded intel: 4 fabricator locations 36006 | -3/Research | Loaded intel: 5 recycling unit locations 36007 | -3/Research | Loaded intel: 4 garrison access locations 36199 | -3/Research | Revision forces began assault on 0b10 36250 | -3/Research | Build established: Construct 36268 | -3/Research | Met up with Revision 17++ 36284 | -3/Research | Found Prototype Processor 36301 | -3/Research | Identified Spectral Analyzer 36524 | -3/Research | Destroyed 8 combat bots 36673 | -3/Research | Spotted B-90 Cyclops 36678 | -3/Research | Entered Quarantine 36679 | -3/Quarantine | Identified exit to Section 7 36679 | -3/Quarantine | Identified exit to Protoforge 36680 | -3/Quarantine | Loaded intel: 22 trap records 37067 | -3/Quarantine | Discovered exit to Research (range 8) 37533 | -3/Quarantine | Watched by a mysterious "MATRIX" hacker 37598 | -3/Quarantine | Learned Quarantine trap positions 37651 | -3/Quarantine | Learned Research garrison access intel 37694 | -3/Quarantine | Learned Testing terminal intel 37753 | -3/Quarantine | Learned 8 Quarantine zone layouts 37787 | -3/Quarantine | Learned Section 7 emergency access door positions 38025 | -3/Quarantine | Found Alien Artifact 38028 | -3/Quarantine | Found Alien Artifact 38048 | -3/Quarantine | System corruption reached 10% 38111 | -3/Quarantine | Found Alien Artifact 38200 | -3/Quarantine | Found Alien Artifact 38246 | -3/Quarantine | Found Alien Artifact 38658 | -3/Quarantine | Spotted Fortress 38795 | -3/Quarantine | Entered Protoforge 38999 | -3/Protoforge | Superfortress began startup sequence 39113 | -3/Protoforge | Spotted Overlord 39123 | -3/Protoforge | Destroyed Overlord 39129 | -3/Protoforge | Spotted Immortal 39129 | -3/Protoforge | Spotted Immortal 39129 | -3/Protoforge | Spotted Immortal 39133 | -3/Protoforge | Destroyed Immortal 39133 | -3/Protoforge | Spotted Hotshot 39137 | -3/Protoforge | Destroyed Immortal 39138 | -3/Protoforge | Spotted Hotshot 39139 | -3/Protoforge | Destroyed Immortal 39148 | -3/Protoforge | Spotted Hotshot 39148 | -3/Protoforge | Spotted Hotshot 39148 | -3/Protoforge | Spotted Hotshot 39157 | -3/Protoforge | Destroyed Hotshot 39162 | -3/Protoforge | Destroyed Hotshot 39163 | -3/Protoforge | Destroyed Hotshot 39166 | -3/Protoforge | Destroyed Hotshot 39168 | -3/Protoforge | Destroyed Hotshot 39189 | -3/Protoforge | Destroyed 9 combat bots 39189 | -3/Protoforge | Found Corrupted Prototype Device 39195 | -3/Protoforge | Identified Adv. Kinecellerator 39338 | -3/Protoforge | Identified Dimensional Node Initializer 39338 | -3/Protoforge | Initialized slip node 39599 | -3/Protoforge | Spotted Hotshot 39599 | -3/Protoforge | Spotted Hotshot 39599 | -3/Protoforge | Spotted Hotshot 39599 | -3/Protoforge | Spotted Hotshot 39606 | -3/Protoforge | Destroyed Hotshot 39608 | -3/Protoforge | Spotted Hotshot 39609 | -3/Protoforge | Destroyed Hotshot 39610 | -3/Protoforge | Destroyed Hotshot 39628 | -3/Protoforge | Destroyed Hotshot 39629 | -3/Protoforge | Destroyed Hotshot 39654 | -3/Protoforge | Destroyed 9 combat bots 39845 | -3/Protoforge | Spotted Hotshot 39865 | -3/Protoforge | Spotted Hotshot 39866 | -3/Protoforge | Spotted Hotshot 39867 | -3/Protoforge | Destroyed Hotshot 39869 | -3/Protoforge | Spotted Hotshot 39871 | -3/Protoforge | Destroyed Hotshot 39873 | -3/Protoforge | Destroyed Hotshot 39875 | -3/Protoforge | Destroyed Hotshot 39876 | -3/Protoforge | Spotted Hotshot 39941 | -3/Protoforge | Destroyed Hotshot 39990 | -3/Protoforge | Spotted Hotshot 39993 | -3/Protoforge | Spotted Hotshot 40005 | -3/Protoforge | Spotted Hotshot 40008 | -3/Protoforge | Spotted Hotshot 40017 | -3/Protoforge | Destroyed Hotshot 40035 | -3/Protoforge | Destroyed Hotshot 40043 | -3/Protoforge | Lost 3 parts (1p2u) 40045 | -3/Protoforge | First assault squad dispatched 40060 | -3/Protoforge | Destroyed Hotshot 40063 | -3/Protoforge | Destroyed Hotshot 40137 | -3/Protoforge | Identified Hpw. Transdimensional Reconstructor 40137 | -3/Protoforge | Warped through subspace to slip node 40149 | -3/Protoforge | Entered Research 40149 | -2/Research | Evolved 2 slots: Utility x2 40150 | -2/Research | Identified exit to Access 40151 | -2/Research | Loaded intel: 4 garrison access locations 40167 | -2/Research | Lost 3 parts (2p1u) 40210 | -2/Research | Spotted B-90 Cyclops 40214 | -2/Research | Self-destructed Last Messages --------------- 40136_ Penetrated by Railslug. 40136_ Particle-Quantum Reactor destroyed. 40136_ Arm. Scrap Engine damaged due to network destabilization (-7). 40136_ Knocked back. 40137_ Identified Hpw. Transdimensional Reconstructor. 40137_ Warped through subspace, drawn to slip node. 40138_ ALERT: Potential suspicious activity detected, Programmers report to Protoforge Zone 7E. 40143_ System corrupted: Thermal Barrier fused. PARAMETERS=UTILITY+2 LOCATION=RESEARCH GOAL=ESCAPE Loading 1 Access entrance... Loading Research garrison access intel (x4)... 40211_ ALERT: All DSF locations entering lockdown mode. Map ----- +----------------------------------------------------+ | ?????????????????????????????????????????????????? | | ?????????????????????????????????????????????????? | | ?????????????????????????????????????????????????? | | ?????????????????????????????????????????????????? | | ?????????????????????????????????????????????????? | | ?????????????????????????????????????????????????? | | ?????????????????????????????????????????????????? | | ?????????????????????????????????????????????????? | | ?????????????????????????????????????????????????? | | ??????????????????????#####??????????????????????? | | ???????????????????? ?????????????????????? | | ????????????????? ?????????????????????? | | ????????????????# u ????????????????? ??? | | ????????????????# ????????????????? "? | | ????????????????# #????????????????# "" | | ????????????????# #????????????????# "" | | ????????????????# R #?????????######## | | ????????????????# #?????????# | | ????????????????# !!/ #?????????# | | ????????????????#= !/ #?????????# | | ????????????????# k!/ #?????????# | | ????????????????# #?????????# # | | ????????????????# #?????????# # | | ????????????????# #?????????# # | | ????????????????+ #?????????# # | | ????????????????# #BB;@ #?????????# # | | ?????????????????????#BB# ########### # | | ?????????????????????##?# + | | ????????????????????????# ################## # | | ????????????????????????#+##????????????????# # | | ??????????????????????? ????????????????# # | | ????????????????????? ??????????????###### | | ????????????????????# #??????????????????? | | ????????????????????# """ #??????????????????? | | ????????????????????# """ #??????????????????? | | ????????????????????# """ #??????????????????? | | ????????????????????# #??????????????????? | | ????????????????????# ? #??????????????????? | | ????????????????????#######??##??????????????????? | | | | | | | | | | | | | | | | | | | | | | | +----------------------------------------------------+ Best States ------------- Heat Dissipation 101 Coolant Potential 65 Energy Generation 100 Energy Capacity 1366 Matter Stores 300 Matter Capacity 300 Sight Range 16 Robot Scan Range 16 Terrain Scan Density 10 ECM Strength 2 Jamming Range 14 Armor Coverage 150 Resistance: TH 50 Resistance: EM 25 Weapon Shielding 90 Phase Shifting 20 Evasion (%) 75 Targeting Accuracy 8 Melee Accuracy 5 Recoil Reduction 6 Authchip Count 1 Item Schematics ----------------- Cryofiber Web | -8/Recycling | Hacked Robot Schematics ------------------ None Fabricated ------------ Nothing Repaired ---------- Nothing Studied --------- Lgt. Treads | -8/Materials | Hacked Adv. Treads | -8/Materials | Hacked Minigun | -8/Materials | Hacked Flak Cannon | -6/Factory | Hacked Tesla Rifle | -5/Factory | Hacked Enh. Gauss Cannon | -3/Research | Hacked Quantum Reactor | -3/Research | Hacked Gamma Rifle | -3/Quarantine | Hacked Alien Tech Used ----------------- Dimensional Node Initializer High-powered Transdimensional Reconstructor Achievements -------------- None Challenges ------------ None Game ------ Seed IntegratedVisualSpear Manual? 0 Play Time 03:53:00 Cumulative 458.7 hours Start 2026.09.23 @ 13:35:55 End 2026.09.23 @ 23:04:05 Sessions 5 Manual Loads 0 Difficulty Rogue Special Mode None Game No. 383 Rogue 329 Adventurer 54 Explorer 0 Win Type - Total 26 Types 16/2/1/1/1/1/1/1/1/1 Lore% 84 Gallery% 73 Achievement% 74 Wizard Run 0 Options --------- Layout 1 ASCII 0 Keyboard 0 Movement Mouse Keybinds 1 Fullscreen 2 Font 32/Tamsyn Map View 50x35 Zoom Use 0% Tactical HUD 1 Map Filters NONE Filters NONE Steam 1 RUN: ffd0d363-1055-419f-ab75-0be2bb39644b